bitfinex/quotes_BTCUSD_20240826
["timestamp","ask_amount","ask_price","bid_price","bid_amount"]
[1724695361687,0.33477801,63588.0,63587.0,0.0029053]
[1724695361891,0.80656401,63588.0,63587.0,0.0029053]
[1724695362417,1.12108801,63588.0,63587.0,0.0029053]
[1724695362626,0.82956401,63588.0,63587.0,0.0029053]
[1724695363135,1.14408801,63588.0,63587.0,0.0029053]
[1724695363783,0.82956401,63588.0,63587.0,0.0029053]
[1724695365625,0.49204001,63588.0,63587.0,0.0029053]
[1724695366260,0.82356401,63588.0,63587.0,0.0019053]
[1724695366438,0.35177801,63588.0,63587.0,0.0029053]
[1724695366737,0.81956401,63588.0,63587.0,0.0019053]
[1724695366870,0.81956401,63588.0,63587.0,0.0029053]
[1724695367068,0.82756401,63588.0,63587.0,0.0029053]
[1724695369800,0.33277801,63588.0,63587.0,0.0029053]
[1724695370154,0.25867801,63588.0,63587.0,0.0029053]
[1724695371234,0.014,63588.0,63587.0,0.4746983]
[1724695371437,0.014,63588.0,63587.0,0.7892273]
[1724695371680,0.014,63588.0,63587.0,1.1037563]
[1724695372689,0.014,63588.0,63587.0,0.1601693]
[1724695372693,0.014,63588.0,63549.0,0.04688931]
[1724695372694,0.629164,63577.0,63549.0,0.04688931]
[1724695372905,0.0948,63562.0,63550.0,0.0938]
[1724695373353,0.0948,63562.0,63546.0,0.0715]
[1724695373623,0.15733,63561.0,63547.0,0.314727]
[1724695373902,0.0948,63562.0,63546.0,0.0715]
[1724695374148,0.15617801,63560.0,63554.0,0.157345]
[1724695374414,0.15617801,63560.0,63555.0,0.157343]
[1724695374693,0.15617801,63560.0,63548.0,0.314718]
[1724695375201,0.15617801,63560.0,63553.0,0.157347]
[1724695375454,0.15617801,63560.0,63546.0,0.0715]
[1724695375731,0.157335,63559.0,63554.0,0.001]
[1724695376524,0.16617801,63560.0,63554.0,0.001]
[1724695376525,0.31351501,63558.0,63554.0,0.001]
[1724695376809,0.31351501,63558.0,63548.0,0.157359]
[1724695376810,0.228639,63557.0,63548.0,0.157359]
[1724695377089,0.157347,63554.0,63545.0,0.157368]
[1724695377342,0.157347,63554.0,63537.0,0.0928064]
[1724695377343,0.15617801,63553.0,63537.0,0.0928064]
[1724695377592,0.15617801,63553.0,63539.0,0.003]
[1724695377593,0.314721,63549.0,63539.0,0.003]
[1724695377843,0.157366,63546.0,63537.0,0.1582944]
[1724695378137,0.15617801,63545.0,63539.0,0.003]
[1724695378543,0.157381,63541.0,63539.0,0.003]
[1724695378642,0.157381,63541.0,63537.0,0.0039064]
[1724695379126,0.157382,63540.0,63537.0,0.0039064]
[1724695379369,0.157381,63540.0,63539.0,0.005]
[1724695379625,0.472129,63542.0,63539.0,0.006]
[1724695379878,0.15617801,63545.0,63539.0,0.0988]
[1724695380123,0.001,63541.0,63539.0,0.003]
[1724695380901,0.001,63540.0,63539.0,0.013]
[1724695381153,0.001,63540.0,63539.0,0.170383]
[1724695381673,0.001,63540.0,63539.0,0.48515]
[1724695381886,0.001,63541.0,63540.0,0.472143]
[1724695382098,0.001,63541.0,63540.0,0.786905]
[1724695382307,0.001,63541.0,63540.0,0.472143]
[1724695383593,0.157362,63548.0,63543.0,0.157373]
[1724695383802,0.31354001,63548.0,63541.0,0.314755]
[1724695384004,0.31354001,63548.0,63543.0,0.157373]
[1724695384209,0.31354001,63548.0,63541.0,0.314755]
[1724695384414,0.31354001,63548.0,63542.0,0.157374]
[1724695384832,0.31354001,63548.0,63543.0,0.157372]
[1724695385453,0.0934,63547.0,63543.0,0.158372]
[1724695385763,0.0934,63547.0,63544.0,0.15737]
[1724695387461,0.0934,63547.0,63543.0,0.159372]
[1724695387664,0.786855,63544.0,63543.0,0.002]
[1724695387875,0.786855,63544.0,63542.0,0.002]
[1724695387876,0.47212,63543.0,63542.0,0.002]
[1724695388076,0.157378,63541.0,63540.0,0.0009053]
[1724695388296,1.03647001,63541.0,63540.0,0.0009053]
[1724695388523,1.35122701,63541.0,63540.0,0.0009053]
[1724695388930,1.88107671,63541.0,63540.0,0.0009053]
[1724695389128,1.90407671,63541.0,63540.0,0.0009053]
[1724695389765,1.580474,63538.0,63536.0,0.0009064]
[1724695389986,0.952942,63537.0,63536.0,0.0009064]
[1724695390169,0.951102,63524.0,63523.0,0.009053]
[1724695390366,1.42212101,63524.0,63523.0,0.009053]
[1724695390724,1.44512101,63524.0,63523.0,0.009053]
[1724695392078,1.45712101,63524.0,63523.0,0.010053]
[1724695392999,1.14228001,63524.0,63523.0,0.010053]
[1724695394248,1.45712101,63524.0,63523.0,0.010053]
[1724695394656,1.47584485,63524.0,63519.0,0.0009064]
[1724695394855,1.76665283,63520.0,63519.0,0.0009064]
[1724695395117,2.20451383,63520.0,63519.0,0.0009064]
[1724695395276,0.0934,63496.0,63490.0,0.009053]
[1724695395445,0.15617801,63495.0,63490.0,0.009053]
[1724695395837,0.15617801,63495.0,63490.0,0.166556]
[1724695396037,0.15617801,63495.0,63490.0,0.009053]
[1724695396311,0.157497,63494.0,63490.0,0.009053]
[1724695396522,0.31367501,63494.0,63490.0,0.009053]
[1724695396642,0.0934,63496.0,63490.0,0.009053]
[1724695396643,0.15617801,63493.0,63491.0,0.0034]
[1724695396847,0.4725,63492.0,63491.0,0.0034]
[1724695397052,0.62867801,63492.0,63491.0,0.0034]
[1724695397254,0.62851058,63492.0,63491.0,0.0034]
[1724695397695,1.25851058,63492.0,63491.0,0.0034]
[1724695397988,1.37491058,63492.0,63491.0,0.0034]
[1724695398412,1.05991058,63492.0,63491.0,0.0034]
[1724695398855,1.37491058,63492.0,63491.0,0.0034]
[1724695399262,1.37491058,63492.0,63491.0,0.0004]
[1724695399673,1.38091058,63492.0,63491.0,0.0004]
[1724695400101,0.74491058,63492.0,63491.0,0.0004]
[1724695400320,0.40707801,63492.0,63491.0,0.0004]
[1724695400538,0.017,63492.0,63491.0,0.157902]
[1724695400957,0.017,63492.0,63491.0,0.472907]
[1724695401217,0.017,63492.0,63491.0,0.157902]
[1724695402076,0.33067801,63492.0,63491.0,0.0004]
[1724695402723,0.3304887,63492.0,63491.0,0.0004]
[1724695402927,0.6454887,63492.0,63491.0,0.0004]
[1724695403361,0.9604887,63492.0,63491.0,0.0004]
[1724695404117,1.3492887,63492.0,63491.0,0.0004]
[1724695405376,1.3722887,63492.0,63491.0,0.0004]
[1724695406811,1.7755887,63492.0,63491.0,0.0004]
[1724695407839,1.93172038,63492.0,63491.0,0.0004]
[1724695410433,2.24772038,63492.0,63491.0,0.0013075]
[1724695410684,2.03372038,63492.0,63491.0,0.0013075]
[1724695410917,2.03454538,63492.0,63491.0,0.0013075]
[1724695412208,1.508735,63486.0,63476.0,0.009053]
[1724695412489,1.85921301,63486.0,63476.0,0.009053]
[1724695413201,2.20167483,63486.0,63476.0,0.009053]
[1724695413413,2.51670483,63486.0,63476.0,0.009053]
[1724695413831,1.5803,63474.0,63459.0,0.009053]
[1724695414068,0.878835,63473.0,63459.0,0.009053]
[1724695414269,1.78820101,63473.0,63459.0,0.009053]
[1724695414889,1.81288941,63473.0,63459.0,0.009053]
[1724695415097,1.49779541,63473.0,63459.0,0.009053]
[1724695416350,1.50879541,63473.0,63459.0,0.009053]
[1724695416555,1.52279541,63473.0,63459.0,0.009053]
[1724695417217,1.51179541,63473.0,63459.0,0.009053]
[1724695417427,1.66792709,63473.0,63459.0,0.009053]
[1724695417634,1.68192709,63473.0,63459.0,0.009053]
[1724695418480,1.193946,63472.0,63459.0,0.009053]
[1724695418708,1.85952301,63472.0,63459.0,0.009053]
[1724695418935,2.01565469,63472.0,63459.0,0.009053]
[1724695419819,1.419215,63460.0,63459.0,0.009053]
[1724695420028,1.419215,63460.0,63455.0,0.009064]
[1724695420029,0.473768,63456.0,63455.0,0.009064]
[1724695420243,1.35523718,63456.0,63455.0,0.009064]
[1724695420467,1.45323718,63456.0,63455.0,0.009064]
[1724695420696,1.47623718,63456.0,63455.0,0.009064]
[1724695420906,1.47823718,63456.0,63455.0,0.009064]
[1724695422618,1.46723718,63456.0,63455.0,0.009064]
[1724695422828,1.04395818,63456.0,63455.0,0.009064]
[1724695423278,1.05795818,63456.0,63455.0,0.009064]
[1724695423702,1.6037505,63456.0,63455.0,0.009064]
[1724695423911,1.6773505,63456.0,63455.0,0.009064]
[1724695424129,1.6913505,63456.0,63455.0,0.009064]
[1724695424392,1.7143505,63456.0,63455.0,0.009064]
[1724695424861,1.57643718,63456.0,63455.0,0.009064]
[1724695426178,1.89161618,63456.0,63455.0,0.009064]
[1724695427357,1.09495818,63456.0,63455.0,0.009064]
[1724695427631,1.41013718,63456.0,63455.0,0.009064]
[1724695430610,1.09495818,63456.0,63455.0,0.009064]
[1724695431020,1.41013718,63456.0,63455.0,0.009064]
[1724695431684,1.09495818,63456.0,63455.0,0.009064]
[1724695431898,0.75677918,63456.0,63455.0,0.009064]
[1724695432318,1.07195818,63456.0,63455.0,0.009064]
[1724695432746,0.75677918,63456.0,63455.0,0.009064]
[1724695432959,0.77321924,63456.0,63455.0,0.009064]
[1724695433165,0.45804024,63456.0,63455.0,0.009064]
[1724695433386,0.20061807,63456.0,63455.0,0.009064]
[1724695433594,0.04444006,63456.0,63455.0,0.971421]
[1724695433808,0.028,63456.0,63455.0,1.286604]
[1724695434231,0.028825,63456.0,63455.0,0.971421]
[1724695434903,0.028825,63456.0,63455.0,1.286604]
[1724695435384,0.014825,63456.0,63455.0,1.286604]
[1724695435608,0.015825,63456.0,63455.0,1.286604]
[1724695436064,0.001825,63456.0,63455.0,1.286604]
[1724695436276,0.009825,63456.0,63455.0,1.286604]
[1724695436915,0.001825,63456.0,63455.0,1.286604]
[1724695437542,0.003825,63456.0,63455.0,1.286604]
[1724695438405,0.002825,63456.0,63455.0,1.286604]
[1724695438613,0.000825,63456.0,63455.0,1.286604]
[1724695438823,0.002825,63456.0,63455.0,1.287604]
[1724695439040,0.002825,63456.0,63455.0,1.603787]
[1724695439261,0.002825,63456.0,63455.0,2.07514801]
[1724695439477,0.157521,63484.0,63479.0,0.233531]
[1724695439733,0.15617801,63483.0,63479.0,0.233532]
[1724695439949,0.15617801,63483.0,63482.0,0.157524]
[1724695440379,0.000824,63491.0,63482.0,0.0972]
[1724695440599,0.15617801,63490.0,63482.0,0.0972]
[1724695440817,0.15617801,63490.0,63485.0,0.315033]
[1724695441026,0.15617801,63490.0,63487.0,0.157512]
[1724695441244,0.15617801,63490.0,63488.0,0.1705]
[1724695441457,0.000824,63491.0,63490.0,0.884725]
[1724695441886,0.000824,63491.0,63490.0,1.199735]
[1724695442124,0.000824,63491.0,63490.0,1.272735]
[1724695442327,0.011824,63491.0,63490.0,1.272735]
[1724695443004,0.000824,63491.0,63490.0,1.272735]
[1724695443439,0.000824,63491.0,63490.0,1.277735]
[1724695443849,0.001824,63491.0,63490.0,1.282735]
[1724695444069,0.001824,63491.0,63490.0,0.967725]
[1724695444284,0.001824,63491.0,63490.0,0.962725]
[1724695444502,0.001824,63491.0,63490.0,1.277735]
[1724695444942,0.001824,63491.0,63490.0,1.377735]
[1724695445793,0.001824,63491.0,63490.0,1.84992301]
[1724695445997,0.001824,63491.0,63490.0,1.377735]
[1724695446206,0.002824,63491.0,63490.0,1.387735]
[1724695446413,0.002824,63491.0,63490.0,1.362735]
[1724695447312,0.002824,63491.0,63490.0,1.83492301]
[1724695448892,0.001824,63491.0,63490.0,1.82992301]
[1724695449104,0.001824,63491.0,63490.0,1.53124]
[1724695449314,0.001824,63491.0,63490.0,1.688745]
[1724695449527,0.002824,63491.0,63490.0,1.702745]
[1724695450818,0.002824,63491.0,63490.0,1.387735]
[1724695453915,0.002824,63491.0,63481.0,0.315051]
[1724695453916,0.157554,63470.0,63469.0,0.098]
[1724695454125,0.315105,63471.0,63466.0,0.00018967]
[1724695454351,0.094,63476.0,63466.0,0.00018967]
[1724695454561,0.15617801,63475.0,63466.0,0.00018967]
[1724695454770,0.15617801,63475.0,63467.0,0.315124]
[1724695454980,0.15617801,63475.0,63466.0,0.00018967]
[1724695455238,0.31372001,63475.0,63466.0,0.15775267]
[1724695455448,0.15617801,63475.0,63466.0,0.00018967]
[1724695455659,0.157551,63472.0,63466.0,0.00018967]
[1724695455868,0.15617801,63472.0,63466.0,0.00018967]
[1724695456084,0.157562,63467.0,63466.0,0.00018967]
[1724695456304,0.472686,63467.0,63466.0,0.00018967]
[1724695456742,0.157565,63466.0,63456.0,0.1584955]
[1724695456972,0.47259643,63467.0,63466.0,0.001]
[1724695457181,0.15617801,63471.0,63466.0,0.001]
[1724695457399,0.157562,63467.0,63466.0,0.001]
[1724695457607,0.157558,63469.0,63466.0,0.001]
[1724695457823,0.15617801,63468.0,63466.0,0.001]
[1724695458034,0.157562,63467.0,63466.0,0.001]
[1724695458482,0.157569,63464.0,63456.0,0.0009075]
[1724695458690,0.0929,63473.0,63456.0,0.0009075]
[1724695458691,0.157578,63461.0,63456.0,0.0009075]
[1724695458902,0.15758,63460.0,63456.0,0.0009075]
[1724695459131,0.157587,63457.0,63456.0,0.0009075]
[1724695459346,1.01541301,63457.0,63456.0,0.0009075]
[1724695459577,1.33058701,63457.0,63456.0,0.0009075]
[1724695459795,1.33058701,63457.0,63456.0,0.0069075]
[1724695460010,1.44428701,63457.0,63456.0,0.0069075]
[1724695460225,1.75946101,63457.0,63456.0,0.0069075]
[1724695460489,1.75946101,63457.0,63456.0,0.0009075]
[1724695460912,1.77346101,63457.0,63456.0,0.0009075]
[1724695461816,1.78646101,63457.0,63456.0,0.0009075]
[1724695462045,2.35976669,63457.0,63456.0,0.0009075]
[1724695462294,2.34676669,63457.0,63451.0,0.0004]
[1724695462538,2.4106439,63452.0,63451.0,0.0004]
[1724695463106,2.5336439,63452.0,63451.0,0.0004]
[1724695463389,2.68958591,63452.0,63451.0,0.0004]
[1724695463613,2.68958591,63452.0,63436.0,0.000823]
[1724695463614,2.25027789,63437.0,63436.0,0.000823]
[1724695463849,2.4064559,63437.0,63436.0,0.000823]
[1724695464064,2.2141829,63437.0,63436.0,0.000823]
[1724695464275,2.37031458,63437.0,63436.0,0.000823]
[1724695464486,1.418841,63432.0,63414.0,0.00012]
[1724695464711,1.79081901,63432.0,63414.0,0.00012]
[1724695464924,1.47552101,63432.0,63414.0,0.00012]
[1724695465131,1.50022633,63432.0,63414.0,0.00012]
[1724695466014,1.50022633,63432.0,63416.0,0.0894]
[1724695466431,1.51422633,63432.0,63416.0,0.0894]
[1724695466638,1.52822633,63432.0,63416.0,0.0894]
[1724695467082,1.51422633,63432.0,63416.0,0.0894]
[1724695467301,1.07242301,63432.0,63421.0,0.16675]
[1724695467514,0.75712501,63432.0,63423.0,0.15767]
[1724695467730,0.75712501,63432.0,63421.0,0.009075]
[1724695467731,1.07242301,63432.0,63421.0,0.009075]
[1724695467945,1.05842301,63432.0,63421.0,0.009075]
[1724695468218,1.07242301,63432.0,63421.0,0.009075]
[1724695468429,1.48052101,63432.0,63421.0,0.009075]
[1724695468650,1.48952101,63432.0,63421.0,0.009075]
[1724695469065,1.47552101,63432.0,63421.0,0.009075]
[1724695469486,1.96295069,63432.0,63421.0,0.009075]
[1724695469691,1.73985269,63432.0,63421.0,0.009075]
[1724695469917,1.72585269,63432.0,63421.0,0.009075]
[1724695470111,1.73985269,63432.0,63421.0,0.009075]
[1724695470325,2.05515069,63432.0,63421.0,0.009075]
[1724695470535,1.72585269,63432.0,63421.0,0.009075]
[1724695470773,1.56772101,63432.0,63421.0,0.009075]
[1724695471195,1.55372101,63432.0,63421.0,0.009075]
[1724695471399,1.58172101,63432.0,63431.0,0.0013064]
[1724695472025,1.56772101,63432.0,63431.0,0.0013064]
[1724695472234,1.58172101,63432.0,63431.0,0.0013064]
[1724695472648,1.72385269,63432.0,63431.0,0.0013064]
[1724695473065,1.73785269,63432.0,63431.0,0.0013064]
[1724695473275,0.0916,63423.0,63407.0,0.0985]
[1724695473479,0.315402,63411.0,63407.0,0.0985]
[1724695473685,0.0916,63423.0,63407.0,0.0985]
[1724695473686,0.31388201,63410.0,63407.0,0.0985]
[1724695473895,0.31388201,63410.0,63409.0,0.157706]
[1724695473896,0.15617801,63410.0,63409.0,0.157706]
[1724695474306,0.15617801,63410.0,63407.0,0.413921]
[1724695474517,0.15617801,63410.0,63408.0,0.166772]
[1724695474743,0.15617801,63410.0,63409.0,0.157706]
[1724695474958,0.15617801,63410.0,63408.0,0.009064]
[1724695474959,0.157687,63417.0,63408.0,0.009064]
[1724695475170,0.15617801,63416.0,63408.0,0.009064]
[1724695475382,0.028,63423.0,63422.0,0.157673]
[1724695475592,0.014,63423.0,63422.0,0.47302]
[1724695475868,0.157652,63431.0,63426.0,0.157662]
[1724695476081,0.31383201,63430.0,63426.0,0.157662]
[1724695476316,0.31383201,63430.0,63422.0,0.630694]
[1724695476317,0.31383201,63430.0,63422.0,0.315347]
[1724695476535,0.15617801,63430.0,63427.0,0.15766]
[1724695476754,0.15617801,63430.0,63425.0,0.315331]
[1724695476975,0.01644006,63435.0,63433.0,0.157645]
[1724695477184,0.15617801,63434.0,63433.0,0.157645]
[1724695477393,0.15617801,63434.0,63433.0,0.472938]
[1724695477622,0.15617801,63434.0,63433.0,0.249245]
[1724695478257,0.15617801,63434.0,63433.0,0.0916]
[1724695478882,0.011,63430.0,63429.0,0.157655]
[1724695479089,0.15617801,63434.0,63433.0,0.157646]
[1724695479314,0.17017801,63434.0,63433.0,0.157646]
[1724695479533,0.18417801,63434.0,63433.0,0.157646]
[1724695479739,0.18417801,63434.0,63429.0,0.315309]
[1724695479740,0.15617801,63434.0,63431.0,0.15765]
[1724695479950,0.15617801,63434.0,63429.0,0.315309]
[1724695480176,0.15617801,63434.0,63431.0,0.157649]
[1724695481090,0.157647,63433.0,63429.0,0.001]
[1724695481298,0.009,63430.0,63429.0,0.001]
[1724695481525,0.009,63430.0,63429.0,0.158656]
[1724695481735,0.157647,63433.0,63429.0,0.157656]
[1724695481949,0.157647,63433.0,63431.0,0.001]
[1724695481950,0.31382701,63432.0,63431.0,0.001]
[1724695482392,0.15617801,63432.0,63431.0,0.001]
[1724695482606,0.15617801,63432.0,63429.0,0.157656]
[1724695482848,0.011,63430.0,63427.0,0.157659]
[1724695483061,0.011,63430.0,63424.0,0.315336]
[1724695483062,0.009,63430.0,63429.0,0.001]
[1724695483273,0.009,63430.0,63429.0,0.789282]
[1724695483534,0.009,63430.0,63429.0,1.199095]
[1724695483745,0.009,63430.0,63429.0,1.590608]
[1724695483962,0.009,63430.0,63429.0,1.93388489]
[1724695484396,0.009,63430.0,63429.0,1.275295]
[1724695484824,0.014,63432.0,63431.0,1.10356]
[1724695485028,0.014,63432.0,63431.0,1.10456]
[1724695485029,0.025,63432.0,63431.0,1.10456]
[1724695485459,0.011,63432.0,63431.0,1.10456]
[1724695485665,0.00090751,63434.0,63433.0,0.472939]
[1724695485877,0.00090751,63434.0,63433.0,0.788232]
[1724695487000,0.00090751,63434.0,63433.0,0.790232]
[1724695487927,0.00090751,63434.0,63433.0,1.53100301]
[1724695489012,0.00090751,63434.0,63433.0,1.53400301]
[1724695489269,0.00090751,63434.0,63433.0,1.84729601]
[1724695489516,0.00190751,63434.0,63433.0,1.84729601]
[1724695489722,0.00190751,63434.0,63433.0,1.86129601]
[1724695489999,0.00290751,63434.0,63433.0,1.54600301]
[1724695490223,0.00290751,63434.0,63433.0,1.388825]
[1724695494166,0.00290751,63434.0,63433.0,0.017]
[1724695494610,0.00290751,63434.0,63433.0,0.174646]
[1724695495029,0.00290751,63434.0,63433.0,0.017]
[1724695495247,0.00290751,63434.0,63433.0,0.174646]
[1724695495469,0.00190751,63434.0,63433.0,0.160646]
[1724695495700,0.00190751,63434.0,63433.0,0.166646]
[1724695495914,0.00290751,63434.0,63433.0,0.171646]
[1724695496126,0.00290751,63434.0,63433.0,0.486939]
[1724695497809,0.00290751,63434.0,63433.0,0.802232]
[1724695498025,0.00290751,63434.0,63433.0,1.294325]
[1724695498465,0.00290751,63434.0,63433.0,1.29515]
[1724695501852,0.00290751,63434.0,63433.0,1.610443]
[1724695502069,0.00290751,63434.0,63433.0,2.18291401]
[1724695502309,0.00290751,63434.0,63433.0,2.52120701]
[1724695502745,0.46876099,63454.0,63453.0,1.195375]
[1724695503171,0.1659,63466.0,63453.0,1.195375]
[1724695503172,0.1659,63466.0,63460.0,0.315157]
[1724695503392,0.1659,63466.0,63457.0,0.315169]
[1724695503393,0.15617801,63466.0,63462.0,0.315146]
[1724695503598,0.15617801,63466.0,63454.0,0.315185]
[1724695503811,0.157571,63464.0,63452.0,0.472794]
[1724695504024,0.15617801,63463.0,63447.0,0.1675]
[1724695504239,0.157577,63461.0,63457.0,0.157587]
[1724695504455,0.15617801,63460.0,63457.0,0.157587]
[1724695504879,0.15617801,63460.0,63455.0,0.315182]
[1724695505086,0.31375801,63460.0,63455.0,0.157591]
[1724695505308,0.1718,63458.0,63454.0,0.157594]
[1724695505514,0.1718,63458.0,63455.0,0.157591]
[1724695505515,0.32797801,63458.0,63455.0,0.157591]
[1724695505753,0.32797801,63458.0,63453.0,0.472785]
[1724695505971,0.32797801,63458.0,63449.0,0.157605]
[1724695505972,0.157595,63454.0,63449.0,0.157605]
[1724695506208,0.15617801,63457.0,63455.0,0.15759]
[1724695506422,0.15617801,63457.0,63455.0,0.001]
[1724695506707,0.31376701,63457.0,63452.0,0.157597]
[1724695506921,0.31376701,63457.0,63453.0,0.001]
[1724695507127,0.31376701,63457.0,63452.0,0.157597]
[1724695507346,0.15759,63456.0,63451.0,0.157601]
[1724695507567,0.15617801,63457.0,63447.0,0.315221]
[1724695507568,0.15617801,63455.0,63447.0,0.315221]
[1724695507774,0.31377001,63455.0,63447.0,0.315221]
[1724695507977,0.157595,63454.0,63450.0,0.157603]
[1724695508394,0.157595,63454.0,63449.0,0.001]
[1724695508395,0.315195,63453.0,63449.0,0.001]
[1724695508599,0.47137301,63453.0,63443.0,0.00018974]
[1724695508844,0.157608,63449.0,63445.0,0.157616]
[1724695509053,0.15617801,63449.0,63447.0,0.15761]
[1724695509273,0.15617801,63449.0,63445.0,0.315232]
[1724695509473,0.15617801,63449.0,63447.0,0.157611]
[1724695510210,0.15617801,63449.0,63444.0,0.315237]
[1724695510477,0.15617801,63449.0,63446.0,0.157613]
[1724695510478,0.15817801,63449.0,63446.0,0.157613]
[1724695510703,0.15817801,63449.0,63443.0,0.00018974]
[1724695510704,0.32347801,63448.0,63443.0,0.00018974]
[1724695510927,0.1673,63448.0,63443.0,0.00018974]
[1724695511135,0.81303788,63470.0,63443.0,0.00018974]
[1724695511136,0.0896,63458.0,63444.0,0.0922]
[1724695511339,0.15617801,63457.0,63445.0,0.0031518]
[1724695511550,0.002,63449.0,63448.0,0.472824]
[1724695511768,0.00290751,63449.0,63448.0,0.472824]
[1724695512177,0.00290751,63449.0,63448.0,0.788042]
[1724695512391,0.00290751,63449.0,63443.0,0.00018974]
[1724695512606,0.15617801,63448.0,63443.0,0.00018974]
[1724695512822,0.15617801,63448.0,63445.0,0.001]
[1724695512823,0.247211,63447.0,63445.0,0.001]
[1724695513104,0.0896,63447.0,63445.0,0.001]
[1724695513336,0.001,63448.0,63447.0,0.157611]
[1724695513757,0.00090751,63449.0,63448.0,0.157609]
[1724695513994,0.00090751,63449.0,63440.0,0.4692]
[1724695514193,0.00090751,63449.0,63447.0,0.157611]
[1724695514438,0.00090751,63449.0,63445.0,0.157614]
[1724695514649,0.00090751,63449.0,63446.0,0.157613]
[1724695514856,0.00090751,63449.0,63447.0,0.157611]
[1724695515072,0.15617801,63448.0,63440.0,0.315258]
[1724695515299,0.157617,63445.0,63441.0,0.157626]
[1724695515723,0.229914,63446.0,63442.0,0.157623]
[1724695516137,0.0723,63446.0,63443.0,0.157621]
[1724695516597,0.001,63445.0,63444.0,0.157619]
[1724695516809,0.15617801,63448.0,63445.0,0.157615]
[1724695517035,0.31378701,63448.0,63442.0,0.320246]
[1724695517240,0.31378701,63448.0,63444.0,0.157618]
[1724695518509,0.15617801,63448.0,63443.0,0.005]
[1724695518722,0.157612,63447.0,63444.0,0.007]
[1724695518923,0.157615,63446.0,63444.0,0.007]
[1724695519123,0.157615,63446.0,63442.0,0.157623]
[1724695519333,0.15617801,63447.0,63443.0,0.157621]
[1724695519539,0.157614,63446.0,63443.0,0.157621]
[1724695519744,0.157614,63446.0,63442.0,0.157624]
[1724695519950,0.15762,63444.0,63440.0,0.157628]
[1724695520400,0.15762,63444.0,63433.0,0.100825]
[1724695520401,0.15617801,63445.0,63439.0,0.31526]
[1724695520611,0.31612451,63449.0,63440.0,0.315255]
[1724695520612,0.00090751,63449.0,63440.0,0.315255]
[1724695520813,0.00090751,63449.0,63448.0,0.788045]
[1724695521452,0.00090751,63449.0,63448.0,0.472827]
[1724695521944,0.00090751,63449.0,63442.0,0.001]
[1724695521945,0.157609,63448.0,63442.0,0.001]
[1724695522162,0.157609,63448.0,63439.0,0.315263]
[1724695522163,0.157616,63445.0,63439.0,0.315263]
[1724695522380,0.0898,63445.0,63442.0,0.157623]
[1724695522806,0.15617801,63448.0,63435.0,0.0962]
[1724695523231,0.47140001,63448.0,63435.0,0.0962]
[1724695523441,0.157616,63446.0,63441.0,0.157624]
[1724695523669,0.15617801,63445.0,63444.0,0.157619]
[1724695524730,0.15617801,63445.0,63442.0,0.315247]
[1724695524731,0.15617801,63445.0,63443.0,0.157621]
[1724695525158,0.15617801,63445.0,63444.0,0.003]
[1724695525572,0.15617801,63445.0,63444.0,0.160619]
[1724695525822,0.15617801,63445.0,63444.0,0.164619]
[1724695526042,0.00090751,63449.0,63448.0,0.315218]
[1724695526258,0.00090751,63449.0,63448.0,0.788045]
[1724695526968,0.00090751,63449.0,63448.0,1.103263]
[1724695528066,0.00290751,63449.0,63448.0,1.103263]
[1724695528692,0.00090751,63449.0,63448.0,1.512481]
[1724695528901,0.00090751,63449.0,63448.0,2.08653784]
[1724695529111,0.00090751,63449.0,63448.0,2.2377268]
[1724695529320,0.00090751,63449.0,63448.0,2.23772122]
[1724695529532,0.00090751,63449.0,63448.0,2.2377209]
[1724695529747,0.00090751,63449.0,63448.0,2.19053784]
[1724695530363,0.00090751,63449.0,63448.0,2.18953784]
[1724695530775,0.00190751,63449.0,63448.0,2.51375584]
[1724695530983,0.00090751,63449.0,63448.0,2.50475584]
[1724695531398,0.00190751,63449.0,63448.0,2.55791102]
[1724695531604,0.00190751,63449.0,63448.0,2.56991102]
[1724695532269,0.00190751,63449.0,63448.0,2.55791102]
[1724695532677,0.00190751,63449.0,63448.0,2.57191102]
[1724695533307,0.00190751,63449.0,63448.0,2.52475584]
[1724695536099,0.46876099,63472.0,63471.0,1.102864]
[1724695536543,0.000824,63475.0,63474.0,1.102811]
[1724695538265,0.002824,63475.0,63474.0,1.102811]
[1724695538490,0.000824,63475.0,63474.0,1.108811]
[1724695538907,0.000824,63475.0,63474.0,1.102811]
[1724695539362,0.000824,63475.0,63474.0,1.109811]
[1724695539846,0.000824,63475.0,63474.0,1.114811]
[1724695540477,0.000824,63475.0,63474.0,1.109811]
[1724695540683,0.000824,63475.0,63474.0,1.102811]
[1724695540915,0.000824,63475.0,63474.0,1.116811]
[1724695542149,0.000824,63475.0,63474.0,1.68217801]
[1724695542565,0.000824,63475.0,63474.0,1.85277801]
[1724695542770,0.000824,63475.0,63474.0,2.16786701]
[1724695543607,0.000824,63475.0,63474.0,2.15986701]
[1724695543809,0.000824,63475.0,63474.0,2.16886701]
[1724695544016,0.000824,63475.0,63474.0,2.17686701]
[1724695544433,0.000824,63475.0,63474.0,2.16786701]
[1724695544634,0.000824,63475.0,63474.0,1.86677801]
[1724695545259,0.000824,63475.0,63474.0,2.18186701]
[1724695545484,0.000824,63475.0,63474.0,1.86677801]
[1724695545692,0.000824,63475.0,63474.0,1.23660001]
[1724695546100,0.000824,63475.0,63474.0,1.55168901]
[1724695548181,0.000824,63475.0,63474.0,1.82641393]
[1724695549583,0.000824,63475.0,63474.0,2.14150293]
[1724695554588,0.000824,63475.0,63474.0,1.66171393]
[1724695554811,0.000824,63475.0,63474.0,1.230811]
[1724695555219,0.000824,63475.0,63474.0,1.50553592]
[1724695556245,0.000824,63475.0,63474.0,2.05610293]
[1724695556443,0.000824,63475.0,63474.0,2.11250293]
[1724695556687,0.000824,63475.0,63474.0,2.12650293]
[1724695557090,0.000824,63475.0,63474.0,2.14050293]
[1724695560474,0.000824,63475.0,63474.0,2.45559193]
[1724695560675,0.000824,63475.0,63474.0,2.47859193]
[1724695560876,0.000825,63483.0,63482.0,1.41872]